[Event "Titled Tuesday Blitz April 05 Early 2022"]
[White "Sellitti, Federico"]
[Black "Lamaze, Simon"]
[WhiteFideId "821829"]
[BlackFideId "36069264"]
[WhiteElo "2554"]
[BlackElo "1999"]
[Result "1/2-1/2"]
[Round "05"]
[TimeControl "180+1"]
[Date "2022.04.05"]
[WhiteClock "0:00:05"]
[BlackClock "0:00:11"]

1. e4 {[%clk 0:03:00]}  c5 {[%clk 0:02:59]} 2. Nc3 {[%clk 0:02:58]}  Nc6 {[%clk 0:02:59]} 3. g3 {[%clk 0:02:59]}  g6 {[%clk 0:02:59]} 4. Bg2 {[%clk 0:02:59]}  Bg7 {[%clk 0:03:00]} 5. d3 {[%clk 0:02:59]}  d6 {[%clk 0:03:00]} 6. Be3 {[%clk 0:03:00]}  e5 {[%clk 0:02:59]} 7. Qd2 {[%clk 0:02:57]}  Nge7 {[%clk 0:02:58]} 8. Bh6 {[%clk 0:02:55]}  Bxh6 {[%clk 0:02:58]} 9. Qxh6 {[%clk 0:02:55]}  Nd4 {[%clk 0:02:59]} 10. Qd2 {[%clk 0:02:56]}  Be6 {[%clk 0:02:55]} 11. f4 {[%clk 0:02:37]}  O-O {[%clk 0:02:46]} 12. Nf3 {[%clk 0:02:37]}  f5 {[%clk 0:02:38]} 13. O-O {[%clk 0:02:33]}  exf4 {[%clk 0:02:30]} 14. gxf4 {[%clk 0:02:34]}  Nec6 {[%clk 0:02:25]} 15. Ng5 {[%clk 0:02:29]}  fxe4 {[%clk 0:02:15]} 16. Nxe6 {[%clk 0:02:11]}  Nxe6 {[%clk 0:02:14]} 17. Nxe4 {[%clk 0:02:11]}  Kg7 {[%clk 0:01:41]} 18. Ng3 {[%clk 0:01:57]}  Qf6 {[%clk 0:01:04]} 19. f5 {[%clk 0:01:46]}  Ned4 {[%clk 0:00:40]} 20. Be4 {[%clk 0:01:29]}  Qh4 {[%clk 0:00:34]} 21. fxg6 {[%clk 0:01:22]}  hxg6 {[%clk 0:00:33]} 22. c3 {[%clk 0:01:13]}  Ne6 {[%clk 0:00:30]} 23. Qg2 {[%clk 0:01:09]}  Nf4 {[%clk 0:00:22]} 24. Rxf4 {[%clk 0:00:57]}  Rxf4 {[%clk 0:00:23]} 25. Nf5+ {[%clk 0:00:55]}  Rxf5 {[%clk 0:00:23]} 26. Bxf5 {[%clk 0:00:55]}  Ne7 {[%clk 0:00:24]} 27. Be4 {[%clk 0:00:52]}  Rf8 {[%clk 0:00:21]} 28. Qg3 {[%clk 0:00:44]}  Qxg3+ {[%clk 0:00:19]} 29. hxg3 {[%clk 0:00:44]}  d5 {[%clk 0:00:20]} 30. Bg2 {[%clk 0:00:43]}  d4 {[%clk 0:00:18]} 31. cxd4 {[%clk 0:00:37]}  cxd4 {[%clk 0:00:19]} 32. Rc1 {[%clk 0:00:37]}  Rc8 {[%clk 0:00:17]} 33. Rxc8 {[%clk 0:00:37]}  Nxc8 {[%clk 0:00:18]} 34. Bxb7 {[%clk 0:00:36]}  Nd6 {[%clk 0:00:19]} 35. Bd5 {[%clk 0:00:30]}  Kf6 {[%clk 0:00:20]} 36. Kf2 {[%clk 0:00:29]}  Ke5 {[%clk 0:00:21]} 37. Bf3 {[%clk 0:00:27]}  Nf5 {[%clk 0:00:21]} 38. b4 {[%clk 0:00:25]}  Ne3 {[%clk 0:00:21]} 39. b5 {[%clk 0:00:20]}  Nc2 {[%clk 0:00:19]} 40. Ke2 {[%clk 0:00:18]}  Nb4 {[%clk 0:00:19]} 41. a3 {[%clk 0:00:17]}  Na2 {[%clk 0:00:19]} 42. Kd2 {[%clk 0:00:17]}  Nc3 {[%clk 0:00:19]} 43. Bc6 {[%clk 0:00:16]}  Na4 {[%clk 0:00:19]} 44. Kc2 {[%clk 0:00:15]}  Nc5 {[%clk 0:00:19]} 45. Kd2 {[%clk 0:00:11]}  g5 {[%clk 0:00:20]} 46. Ke2 {[%clk 0:00:11]}  g4 {[%clk 0:00:17]} 47. Kd2 {[%clk 0:00:11]}  Kf5 {[%clk 0:00:17]} 48. Kc2 {[%clk 0:00:11]}  Ke5 {[%clk 0:00:17]} 49. Be8 {[%clk 0:00:09]}  Kf5 {[%clk 0:00:17]} 50. Bf7 {[%clk 0:00:08]}  Ke5 {[%clk 0:00:17]} 51. Bg6 {[%clk 0:00:08]}  Kf6 {[%clk 0:00:17]} 52. Bh7 {[%clk 0:00:08]}  Ke5 {[%clk 0:00:17]} 53. Kb2 {[%clk 0:00:05]}  Na4+ {[%clk 0:00:17]} 54. Kb3 {[%clk 0:00:05]}  Nc3 {[%clk 0:00:16]} 55. Kc4 {[%clk 0:00:05]}  Ne2 {[%clk 0:00:16]} 56. a4 {[%clk 0:00:04]}  Nxg3 {[%clk 0:00:16]} 57. a5 {[%clk 0:00:05]}  Ne2 {[%clk 0:00:14]} 58. b6 {[%clk 0:00:05]}  axb6 {[%clk 0:00:13]} 59. axb6 {[%clk 0:00:06]}  Kd6 {[%clk 0:00:14]} 60. Be4 {[%clk 0:00:05]}  g3 {[%clk 0:00:14]} 61. Kb5 {[%clk 0:00:05]}  Nf4 {[%clk 0:00:09]} 62. Ka6 {[%clk 0:00:06]}  Nxd3 {[%clk 0:00:09]} 63. Bxd3 {[%clk 0:00:02]}  g2 {[%clk 0:00:09]} 64. b7 {[%clk 0:00:03]}  g1=Q {[%clk 0:00:10]} 65. b8=Q+ {[%clk 0:00:04]}  Ke7 {[%clk 0:00:10]} 66. Qb7+ {[%clk 0:00:03]}  Kf6 {[%clk 0:00:10]} 67. Qe4 {[%clk 0:00:04]}  Qa1+ {[%clk 0:00:09]} 68. Kb5 {[%clk 0:00:05]}  Qb2+ {[%clk 0:00:10]} 69. Kc5 {[%clk 0:00:05]}  Qc3+ {[%clk 0:00:10]} 70. Kd5 {[%clk 0:00:05]}  Qa5+ {[%clk 0:00:10]} 71. Kxd4 {[%clk 0:00:05]}  Qb6+ {[%clk 0:00:11]} 72. Kc3 {[%clk 0:00:05]}  Qc5+ {[%clk 0:00:11]} 73. Bc4 {[%clk 0:00:05]}  Qa3+ {[%clk 0:00:11]} 74. Kd4 {[%clk 0:00:06]}  Qa1+ {[%clk 0:00:12]} 75. Kd3 {[%clk 0:00:06]}  Qb1+ {[%clk 0:00:12]} 76. Ke3 {[%clk 0:00:06]}  Qe1+ {[%clk 0:00:12]} 77. Kd4 {[%clk 0:00:06]}  Qa1+ {[%clk 0:00:12]} 78. Kc5 {[%clk 0:00:06]}  Qa5+ {[%clk 0:00:12]} 79. Bb5 {[%clk 0:00:06]}  Qa3+ {[%clk 0:00:12]} 80. Kc4 {[%clk 0:00:05]}  Qc1+ {[%clk 0:00:12]} 81. Kd4 {[%clk 0:00:05]}  Qb2+ {[%clk 0:00:12]} 82. Kc5 {[%clk 0:00:04]}  Qc3+ {[%clk 0:00:12]} 83. Qc4 {[%clk 0:00:05]}  Qe5+ {[%clk 0:00:12]} 84. Kb4 {[%clk 0:00:05]}  Qb2+ {[%clk 0:00:12]} 85. Ka5 {[%clk 0:00:05]}  Qa3+ {[%clk 0:00:12]} 86. Kb6 {[%clk 0:00:06]}  Qd6+ {[%clk 0:00:12]} 87. Qc6 {[%clk 0:00:07]}  Ke5 {[%clk 0:00:12]} 88. Kb7 {[%clk 0:00:07]}  Qe7+ {[%clk 0:00:12]} 89. Ka6 {[%clk 0:00:06]}  Qa3+ {[%clk 0:00:12]} 90. Kb6 {[%clk 0:00:07]}  Qe3+ {[%clk 0:00:12]} 91. Kc7 {[%clk 0:00:06]}  Qa7+ {[%clk 0:00:12]} 92. Qb7 {[%clk 0:00:06]}  Qa5+ {[%clk 0:00:12]} 93. Kc6 {[%clk 0:00:06]}  Kd4 {[%clk 0:00:11]} 94. Qd7+ {[%clk 0:00:05]}  Ke3 {[%clk 0:00:12]} 95. Qd3+ {[%clk 0:00:05]}  Kf2 {[%clk 0:00:12]} 96. Qe2+ {[%clk 0:00:06]}  Kg1 {[%clk 0:00:12]} 97. Kd5 {[%clk 0:00:04]}  Qd8+ {[%clk 0:00:12]} 98. Ke4 {[%clk 0:00:05]}  Qe7+ {[%clk 0:00:12]} 99. Kf4 {[%clk 0:00:05]}  Qf6+ {[%clk 0:00:12]} 100. Kg3 {[%clk 0:00:04]}  Qg5+ {[%clk 0:00:12]} 101. Kf3 {[%clk 0:00:04]}  Qh5+ {[%clk 0:00:12]} 102. Ke3 {[%clk 0:00:04]}  Qe5+ {[%clk 0:00:13]} 103. Kd2 {[%clk 0:00:05]}  Qb2+ {[%clk 0:00:13]} 104. Ke3 {[%clk 0:00:04]}  Qc3+ {[%clk 0:00:13]} 105. Bd3 {[%clk 0:00:04]}  Qc5+ {[%clk 0:00:11]} 106. Kf3 {[%clk 0:00:04]}  Qh5+ {[%clk 0:00:11]} 107. Kg3 {[%clk 0:00:03]}  Qg5+ {[%clk 0:00:11]} 108. Qg4 {[%clk 0:00:03]}  Qe3+ {[%clk 0:00:11]} 109. Kh4+ {[%clk 0:00:03]}  Kf2 {[%clk 0:00:11]} 110. Bf5 {[%clk 0:00:02]}  Qe7+ {[%clk 0:00:11]} 111. Qg5 {[%clk 0:00:02]}  Qb4+ {[%clk 0:00:11]} 112. Kh5 {[%clk 0:00:02]}  Qc5 {[%clk 0:00:11]} 113. Qh4+ {[%clk 0:00:02]}  Ke2 {[%clk 0:00:11]} 114. Qg5 {[%clk 0:00:03]}  Qe3 {[%clk 0:00:10]} 115. Bg6 {[%clk 0:00:04]}  Qh3+ {[%clk 0:00:10]} 116. Qh4 {[%clk 0:00:04]}  Qc8 {[%clk 0:00:11]} 117. Qg4+ {[%clk 0:00:05]}  Qxg4+ {[%clk 0:00:11]} 118. Kxg4 {[%clk 0:00:05]} 1/2-1/2


[Site "https://www.chess.com"]

[Event "Titled Tuesday Blitz April 05 Early 2022"]
[White "Shohat, Yotam"]
[Black "Kosteniuk, Alexandra"]
[WhiteFideId "2813955"]
[BlackFideId "4128125"]
[WhiteElo "2119"]
[BlackElo "2469"]
[Result "0-1"]
[Round "05"]
[TimeControl "180+1"]
[Date "2022.04.05"]
[WhiteClock "0:00:03"]
[BlackClock "0:00:06"]

1. e4 {[%clk 0:03:00]}  c6 {[%clk 0:02:59]} 2. d4 {[%clk 0:03:00]}  d5 {[%clk 0:02:59]} 3. exd5 {[%clk 0:03:01]}  cxd5 {[%clk 0:02:59]} 4. c4 {[%clk 0:03:02]}  Nf6 {[%clk 0:02:59]} 5. Nc3 {[%clk 0:03:02]}  Nc6 {[%clk 0:02:59]} 6. Nf3 {[%clk 0:03:03]}  g6 {[%clk 0:02:52]} 7. cxd5 {[%clk 0:03:01]}  Nxd5 {[%clk 0:02:51]} 8. Qb3 {[%clk 0:03:00]}  Nxc3 {[%clk 0:02:38]} 9. Bc4 {[%clk 0:02:58]}  Nd5 {[%clk 0:02:11]} 10. Bxd5 {[%clk 0:02:57]}  e6 {[%clk 0:02:11]} 11. Bxc6+ {[%clk 0:02:56]}  bxc6 {[%clk 0:02:11]} 12. O-O {[%clk 0:02:56]}  Bg7 {[%clk 0:02:10]} 13. Bf4 {[%clk 0:02:33]}  O-O {[%clk 0:02:05]} 14. Be5 {[%clk 0:02:32]}  f6 {[%clk 0:02:03]} 15. Bg3 {[%clk 0:02:31]}  Qd5 {[%clk 0:01:58]} 16. Qe3 {[%clk 0:02:26]}  Re8 {[%clk 0:01:53]} 17. Rfc1 {[%clk 0:02:21]}  g5 {[%clk 0:01:27]} 18. Rc5 {[%clk 0:02:15]}  Qd7 {[%clk 0:01:27]} 19. Rac1 {[%clk 0:02:08]}  Bb7 {[%clk 0:01:27]} 20. h4 {[%clk 0:02:04]}  g4 {[%clk 0:01:11]} 21. Nd2 {[%clk 0:02:03]}  Rad8 {[%clk 0:01:06]} 22. Nb3 {[%clk 0:02:02]}  Ba8 {[%clk 0:00:54]} 23. Qf4 {[%clk 0:01:21]}  f5 {[%clk 0:00:52]} 24. Qg5 {[%clk 0:01:21]}  Qe7 {[%clk 0:00:46]} 25. Qxe7 {[%clk 0:01:00]}  Rxe7 {[%clk 0:00:47]} 26. Be5 {[%clk 0:01:01]}  Bxe5 {[%clk 0:00:42]} 27. dxe5 {[%clk 0:01:00]}  Rd5 {[%clk 0:00:40]} 28. f4 {[%clk 0:00:47]}  gxf3 {[%clk 0:00:40]} 29. gxf3 {[%clk 0:00:47]}  Kf7 {[%clk 0:00:37]} 30. Kf2 {[%clk 0:00:40]}  Red7 {[%clk 0:00:36]} 31. Ke2 {[%clk 0:00:22]}  Rd8 {[%clk 0:00:36]} 32. R1c2 {[%clk 0:00:18]}  Rg8 {[%clk 0:00:35]} 33. Kf2 {[%clk 0:00:19]}  Rb8 {[%clk 0:00:31]} 34. Rxd5 {[%clk 0:00:11]}  exd5 {[%clk 0:00:30]} 35. Nc5 {[%clk 0:00:09]}  Rb4 {[%clk 0:00:27]} 36. Kg3 {[%clk 0:00:09]}  Ke7 {[%clk 0:00:22]} 37. a3 {[%clk 0:00:09]}  Rd4 {[%clk 0:00:19]} 38. Rc3 {[%clk 0:00:09]}  f4+ {[%clk 0:00:13]} 39. Kg4 {[%clk 0:00:08]}  Rd2 {[%clk 0:00:10]} 40. Rb3 {[%clk 0:00:06]}  Rc2 {[%clk 0:00:11]} 41. Rc3 {[%clk 0:00:05]}  Rxb2 {[%clk 0:00:10]} 42. Kxf4 {[%clk 0:00:05]}  Rb5 {[%clk 0:00:09]} 43. Kf5 {[%clk 0:00:04]}  d4 {[%clk 0:00:09]} 44. Rc4 {[%clk 0:00:03]}  Ra5 {[%clk 0:00:08]} 45. f4 {[%clk 0:00:03]}  a6 {[%clk 0:00:07]} 46. Ne4 {[%clk 0:00:02]}  Rd5 {[%clk 0:00:06]} 47. Nd6 {[%clk 0:00:02]}  d3 {[%clk 0:00:06]} 48. Rc1 {[%clk 0:00:01]}  d2 {[%clk 0:00:06]} 49. Rd1 {[%clk 0:00:02]}  c5 {[%clk 0:00:07]} 50. Nc4 {[%clk 0:00:03]}  Rd4 {[%clk 0:00:06]} 51. Nxd2 {[%clk 0:00:02]}  Bf3 {[%clk 0:00:07]} 52. Nxf3 {[%clk 0:00:01]}  Rxd1 {[%clk 0:00:07]} 53. Ng5 {[%clk 0:00:01]}  h6 {[%clk 0:00:07]} 54. Ne4 {[%clk 0:00:02]}  c4 {[%clk 0:00:07]} 55. e6 {[%clk 0:00:03]}  Rd5+ {[%clk 0:00:06]} 56. Kg6 {[%clk 0:00:03]}  Kxe6 {[%clk 0:00:06]} 57. Nc3 {[%clk 0:00:03]}  Rd3 {[%clk 0:00:06]} 58. f5+ {[%clk 0:00:02]}  Ke7 {[%clk 0:00:06]} 59. f6+ {[%clk 0:00:03]}  Kf8 {[%clk 0:00:07]} 60. Ne4 {[%clk 0:00:03]}  c3 {[%clk 0:00:06]} 61. f7 {[%clk 0:00:03]}  c2 {[%clk 0:00:06]} 62. Nf6 {[%clk 0:00:03]}  Rd6 {[%clk 0:00:06]} 0-1


[Site "https://www.chess.com"]

[Event "Titled Tuesday Blitz April 05 Early 2022"]
[White "Shukhman, Anna"]
[Black "Bachmann, Axel"]
[WhiteFideId "54180058"]
[BlackFideId "3700488"]
[WhiteElo "1665"]
[BlackElo "2587"]
[Result "1/2-1/2"]
[Round "05"]
[TimeControl "180+1"]
[Date "2022.04.05"]
[WhiteClock "0:00:12"]
[BlackClock "0:00:02"]

1. e4 {[%clk 0:03:00]}  c5 {[%clk 0:03:00]} 2. Nf3 {[%clk 0:02:58]}  d6 {[%clk 0:03:00]} 3. d4 {[%clk 0:02:57]}  cxd4 {[%clk 0:03:01]} 4. Nxd4 {[%clk 0:02:58]}  Nf6 {[%clk 0:03:01]} 5. Nc3 {[%clk 0:02:58]}  a6 {[%clk 0:03:01]} 6. Qd3 {[%clk 0:02:57]}  e5 {[%clk 0:02:41]} 7. Nf5 {[%clk 0:02:56]}  Bxf5 {[%clk 0:02:26]} 8. exf5 {[%clk 0:02:56]}  Nc6 {[%clk 0:02:16]} 9. Bg5 {[%clk 0:02:48]}  Be7 {[%clk 0:02:12]} 10. g3 {[%clk 0:02:44]}  Nb4 {[%clk 0:02:02]} 11. Qd2 {[%clk 0:02:42]}  d5 {[%clk 0:01:48]} 12. a3 {[%clk 0:02:29]}  d4 {[%clk 0:01:48]} 13. axb4 {[%clk 0:02:28]}  Bxb4 {[%clk 0:01:48]} 14. Ra4 {[%clk 0:02:12]}  Qb6 {[%clk 0:01:13]} 15. Bb5+ {[%clk 0:01:43]}  Qxb5 {[%clk 0:00:33]} 16. Nxb5 {[%clk 0:01:42]}  Bxd2+ {[%clk 0:00:32]} 17. Bxd2 {[%clk 0:01:40]}  Kd7 {[%clk 0:00:31]} 18. Na3 {[%clk 0:01:31]}  b5 {[%clk 0:00:31]} 19. Ra5 {[%clk 0:01:27]}  Ne4 {[%clk 0:00:19]} 20. f3 {[%clk 0:01:25]}  Nc5 {[%clk 0:00:17]} 21. Nb1 {[%clk 0:01:25]}  Na4 {[%clk 0:00:16]} 22. b3 {[%clk 0:01:24]}  Nb6 {[%clk 0:00:13]} 23. O-O {[%clk 0:01:21]}  f6 {[%clk 0:00:12]} 24. Na3 {[%clk 0:01:13]}  Rhc8 {[%clk 0:00:11]} 25. Ra1 {[%clk 0:01:09]}  Kc6 {[%clk 0:00:08]} 26. Nb1 {[%clk 0:01:05]}  Kb7 {[%clk 0:00:07]} 27. R5a2 {[%clk 0:01:03]}  Rc6 {[%clk 0:00:06]} 28. Kf2 {[%clk 0:01:00]}  Nd5 {[%clk 0:00:07]} 29. Ke2 {[%clk 0:00:58]}  Rac8 {[%clk 0:00:07]} 30. Kd3 {[%clk 0:00:55]}  g6 {[%clk 0:00:06]} 31. g4 {[%clk 0:00:52]}  gxf5 {[%clk 0:00:06]} 32. gxf5 {[%clk 0:00:51]}  Ne7 {[%clk 0:00:06]} 33. Bb4 {[%clk 0:00:35]}  Nxf5 {[%clk 0:00:06]} 34. Nd2 {[%clk 0:00:35]}  Ne3 {[%clk 0:00:06]} 35. Ne4 {[%clk 0:00:32]}  Nxc2 {[%clk 0:00:03]} 36. Rxc2 {[%clk 0:00:27]}  Rxc2 {[%clk 0:00:03]} 37. Nd6+ {[%clk 0:00:27]}  Kb6 {[%clk 0:00:01]} 38. Nxc8+ {[%clk 0:00:27]}  Rxc8 {[%clk 0:00:02]} 39. Rg1 {[%clk 0:00:26]}  Rc6 {[%clk 0:00:02]} 40. Rg7 {[%clk 0:00:25]}  a5 {[%clk 0:00:02]} 41. Bd2 {[%clk 0:00:24]}  b4 {[%clk 0:00:02]} 42. Rxh7 {[%clk 0:00:23]}  Kb5 {[%clk 0:00:02]} 43. Rb7+ {[%clk 0:00:22]}  Ka6 {[%clk 0:00:02]} 44. Rb8 {[%clk 0:00:22]}  Re6 {[%clk 0:00:01]} 45. h4 {[%clk 0:00:21]}  f5 {[%clk 0:00:01]} 46. Rf8 {[%clk 0:00:19]}  e4+ {[%clk 0:00:02]} 47. fxe4 {[%clk 0:00:18]}  fxe4+ {[%clk 0:00:02]} 48. Kxd4 {[%clk 0:00:17]}  Kb5 {[%clk 0:00:03]} 49. Rf5+ {[%clk 0:00:16]}  Kb6 {[%clk 0:00:03]} 50. h5 {[%clk 0:00:17]}  Ka6 {[%clk 0:00:01]} 51. h6 {[%clk 0:00:17]}  Rd6+ {[%clk 0:00:02]} 52. Ke3 {[%clk 0:00:14]}  Rxh6 {[%clk 0:00:02]} 53. Kxe4 {[%clk 0:00:13]}  Rh3 {[%clk 0:00:03]} 54. Be3 {[%clk 0:00:11]}  Rh4+ {[%clk 0:00:01]} 55. Kd3 {[%clk 0:00:11]}  Rh3 {[%clk 0:00:02]} 56. Rf6+ {[%clk 0:00:11]}  Kb7 {[%clk 0:00:01]} 57. Rf7+ {[%clk 0:00:11]}  Kc6 {[%clk 0:00:02]} 58. Rf6+ {[%clk 0:00:11]}  Kb7 {[%clk 0:00:02]} 59. Rf5 {[%clk 0:00:12]}  Ka6 {[%clk 0:00:02]} 60. Rf6+ {[%clk 0:00:12]}  Kb7 {[%clk 0:00:02]} 1/2-1/2


[Site "https://www.chess.com"]

[Event "Titled Tuesday Blitz April 05 Early 2022"]
[White "Srebrnic, Marko"]
[Black "Le Ruyet, Leopold"]
[WhiteFideId "14603616"]
[BlackFideId "645923"]
[WhiteElo "2340"]
[BlackElo "2276"]
[Result "1/2-1/2"]
[Round "05"]
[TimeControl "180+1"]
[Date "2022.04.05"]
[WhiteClock "0:00:08"]
[BlackClock "0:00:05"]

1. e4 {[%clk 0:03:00]}  e5 {[%clk 0:02:59]} 2. Nc3 {[%clk 0:02:59]}  Nf6 {[%clk 0:02:56]} 3. Bc4 {[%clk 0:02:59]}  Nxe4 {[%clk 0:02:55]} 4. Qh5 {[%clk 0:02:59]}  Nd6 {[%clk 0:02:55]} 5. Qxe5+ {[%clk 0:03:00]}  Qe7 {[%clk 0:02:51]} 6. Qxe7+ {[%clk 0:03:00]}  Bxe7 {[%clk 0:02:52]} 7. Bb3 {[%clk 0:03:01]}  c6 {[%clk 0:02:48]} 8. d4 {[%clk 0:03:01]}  Nf5 {[%clk 0:02:48]} 9. d5 {[%clk 0:03:01]}  Nd4 {[%clk 0:02:44]} 10. Nge2 {[%clk 0:03:00]}  Nxb3 {[%clk 0:02:43]} 11. axb3 {[%clk 0:03:01]}  Na6 {[%clk 0:02:36]} 12. Bf4 {[%clk 0:02:59]}  Nb4 {[%clk 0:02:12]} 13. O-O-O {[%clk 0:02:59]}  O-O {[%clk 0:02:01]} 14. d6 {[%clk 0:02:46]}  Bf6 {[%clk 0:01:56]} 15. Ne4 {[%clk 0:02:44]}  Bd8 {[%clk 0:01:54]} 16. N2c3 {[%clk 0:02:33]}  b6 {[%clk 0:01:47]} 17. Rhe1 {[%clk 0:02:25]}  Bb7 {[%clk 0:01:43]} 18. f3 {[%clk 0:02:24]}  f5 {[%clk 0:01:31]} 19. Ng3 {[%clk 0:02:13]}  g6 {[%clk 0:01:16]} 20. Bh6 {[%clk 0:02:09]}  Bf6 {[%clk 0:01:06]} 21. Bxf8 {[%clk 0:02:07]}  Kxf8 {[%clk 0:01:04]} 22. Re2 {[%clk 0:02:01]}  Ba6 {[%clk 0:01:02]} 23. Rde1 {[%clk 0:01:55]}  Bxe2 {[%clk 0:00:59]} 24. Rxe2 {[%clk 0:01:54]}  Na6 {[%clk 0:00:52]} 25. Kd1 {[%clk 0:01:30]}  Nc5 {[%clk 0:00:51]} 26. f4 {[%clk 0:01:27]}  Ne6 {[%clk 0:00:51]} 27. Rf2 {[%clk 0:01:22]}  Bd4 {[%clk 0:00:51]} 28. Rf3 {[%clk 0:01:20]}  Bc5 {[%clk 0:00:50]} 29. Nge2 {[%clk 0:01:19]}  Bxd6 {[%clk 0:00:50]} 30. g3 {[%clk 0:01:19]}  Be7 {[%clk 0:00:47]} 31. Re3 {[%clk 0:01:18]}  Kf7 {[%clk 0:00:46]} 32. Ng1 {[%clk 0:01:12]}  Bc5 {[%clk 0:00:46]} 33. Re1 {[%clk 0:01:11]}  d6 {[%clk 0:00:34]} 34. Nf3 {[%clk 0:01:10]}  Re8 {[%clk 0:00:31]} 35. Ne2 {[%clk 0:01:05]}  h6 {[%clk 0:00:28]} 36. c3 {[%clk 0:01:05]}  b5 {[%clk 0:00:27]} 37. b4 {[%clk 0:01:04]}  Bf2 {[%clk 0:00:27]} 38. Rf1 {[%clk 0:01:04]}  Bb6 {[%clk 0:00:27]} 39. h4 {[%clk 0:01:03]}  Nc7 {[%clk 0:00:26]} 40. Ned4 {[%clk 0:01:02]}  Nd5 {[%clk 0:00:25]} 41. Kc1 {[%clk 0:00:57]}  Ne7 {[%clk 0:00:20]} 42. Re1 {[%clk 0:00:53]}  a6 {[%clk 0:00:20]} 43. b3 {[%clk 0:00:42]}  c5 {[%clk 0:00:16]} 44. bxc5 {[%clk 0:00:34]}  Bxc5 {[%clk 0:00:17]} 45. Kb2 {[%clk 0:00:28]}  b4 {[%clk 0:00:17]} 46. c4 {[%clk 0:00:27]}  Bb6 {[%clk 0:00:14]} 47. Kc2 {[%clk 0:00:25]}  Ng8 {[%clk 0:00:10]} 48. Rxe8 {[%clk 0:00:24]}  Kxe8 {[%clk 0:00:11]} 49. Kd3 {[%clk 0:00:24]}  Nf6 {[%clk 0:00:10]} 50. Nc6 {[%clk 0:00:24]}  Bc5 {[%clk 0:00:09]} 51. Nd2 {[%clk 0:00:22]}  Nh5 {[%clk 0:00:08]} 52. Nf1 {[%clk 0:00:22]}  Bf2 {[%clk 0:00:08]} 53. Nxb4 {[%clk 0:00:22]}  Nxg3 {[%clk 0:00:08]} 54. Nd2 {[%clk 0:00:12]}  Be1 {[%clk 0:00:07]} 55. Nxa6 {[%clk 0:00:10]}  Nh5 {[%clk 0:00:07]} 56. Nf3 {[%clk 0:00:09]}  Nxf4+ {[%clk 0:00:07]} 57. Ke3 {[%clk 0:00:09]}  Bg3 {[%clk 0:00:07]} 58. b4 {[%clk 0:00:08]}  Kd7 {[%clk 0:00:07]} 59. b5 {[%clk 0:00:08]}  Ng2+ {[%clk 0:00:08]} 60. Ke2 {[%clk 0:00:08]}  Nxh4 {[%clk 0:00:08]} 61. Nd4 {[%clk 0:00:08]}  Be5 {[%clk 0:00:07]} 62. Nc6 {[%clk 0:00:08]}  Ng2 {[%clk 0:00:05]} 63. Na7 {[%clk 0:00:06]}  Bd4 {[%clk 0:00:04]} 64. Nc6 {[%clk 0:00:06]}  Bc5 {[%clk 0:00:04]} 65. Ncb8+ {[%clk 0:00:04]}  Kc8 {[%clk 0:00:02]} 66. Nc6 {[%clk 0:00:05]}  Nf4+ {[%clk 0:00:03]} 67. Kd2 {[%clk 0:00:05]}  Ne6 {[%clk 0:00:04]} 68. Ne7+ {[%clk 0:00:05]}  Kb7 {[%clk 0:00:03]} 69. Nxg6 {[%clk 0:00:06]}  Kb6 {[%clk 0:00:03]} 70. Ne7 {[%clk 0:00:06]}  Nd4 {[%clk 0:00:04]} 71. Nd5+ {[%clk 0:00:06]}  Ka5 {[%clk 0:00:04]} 72. Kd3 {[%clk 0:00:07]}  Nb3 {[%clk 0:00:04]} 73. Nac7 {[%clk 0:00:06]}  Na1 {[%clk 0:00:03]} 74. Ne6 {[%clk 0:00:05]}  Nb3 {[%clk 0:00:03]} 75. Ne7 {[%clk 0:00:05]}  Bb4 {[%clk 0:00:03]} 76. Nxf5 {[%clk 0:00:05]}  Ka4 {[%clk 0:00:03]} 77. Nc7 {[%clk 0:00:04]}  Nc5+ {[%clk 0:00:04]} 78. Ke2 {[%clk 0:00:03]}  Kb3 {[%clk 0:00:03]} 79. Nxd6 {[%clk 0:00:03]}  Kc3 {[%clk 0:00:03]} 80. Nd5+ {[%clk 0:00:02]}  Kb3 {[%clk 0:00:03]} 81. Nxb4 {[%clk 0:00:03]}  Kxb4 {[%clk 0:00:04]} 82. b6 {[%clk 0:00:04]}  Ka5 {[%clk 0:00:03]} 83. b7 {[%clk 0:00:04]}  Nxb7 {[%clk 0:00:03]} 84. Nxb7+ {[%clk 0:00:05]}  Kb4 {[%clk 0:00:04]} 85. c5 {[%clk 0:00:06]}  Kb5 {[%clk 0:00:04]} 86. Kd3 {[%clk 0:00:07]}  Kc6 {[%clk 0:00:05]} 87. Nd6 {[%clk 0:00:07]}  Kxc5 {[%clk 0:00:05]} 88. Nf5 {[%clk 0:00:08]}  Kd5 {[%clk 0:00:05]} 89. Nxh6 {[%clk 0:00:08]} 1/2-1/2


[Site "https://www.chess.com"]

[Event "Titled Tuesday Blitz April 05 Early 2022"]
[White "Sychev, Klementy"]
[Black "Cori T., Deysi"]
[WhiteFideId "4114060"]
[BlackFideId "3801934"]
[WhiteElo "2564"]
[BlackElo "2341"]
[Result "0-1"]
[Round "05"]
[TimeControl "180+1"]
[Date "2022.04.05"]
[WhiteClock "0:01:06"]
[BlackClock "0:00:15"]

1. d4 {[%clk 0:02:42]}  f5 {[%clk 0:02:55]} 2. e4 {[%clk 0:02:35]}  fxe4 {[%clk 0:02:54]} 3. Nc3 {[%clk 0:02:36]}  d5 {[%clk 0:02:53]} 4. Qh5+ {[%clk 0:02:35]}  g6 {[%clk 0:02:48]} 5. Qxd5 {[%clk 0:02:34]}  Nf6 {[%clk 0:02:47]} 6. Qxd8+ {[%clk 0:02:34]}  Kxd8 {[%clk 0:02:47]} 7. Bf4 {[%clk 0:02:34]}  c6 {[%clk 0:02:41]} 8. O-O-O {[%clk 0:02:33]}  Bg7 {[%clk 0:02:40]} 9. d5 {[%clk 0:02:32]}  c5 {[%clk 0:02:19]} 10. Nb5 {[%clk 0:02:19]}  Na6 {[%clk 0:02:16]} 11. Bc4 {[%clk 0:02:10]}  Bd7 {[%clk 0:02:14]} 12. d6 {[%clk 0:02:08]}  e6 {[%clk 0:02:14]} 13. Nc7 {[%clk 0:02:08]}  Nxc7 {[%clk 0:02:12]} 14. dxc7+ {[%clk 0:02:09]}  Kc8 {[%clk 0:02:12]} 15. Nh3 {[%clk 0:02:07]}  b5 {[%clk 0:02:06]} 16. Rxd7 {[%clk 0:02:06]}  Nxd7 {[%clk 0:02:00]} 17. Bxe6 {[%clk 0:02:04]}  Re8 {[%clk 0:01:17]} 18. Bd5 {[%clk 0:02:04]}  Nb6 {[%clk 0:01:17]} 19. Bc6 {[%clk 0:02:01]}  Re6 {[%clk 0:01:11]} 20. Bxa8 {[%clk 0:01:58]}  Nxa8 {[%clk 0:01:10]} 21. Ng5 {[%clk 0:01:58]}  Ra6 {[%clk 0:01:02]} 22. a4 {[%clk 0:01:37]}  Nxc7 {[%clk 0:00:40]} 23. Kb1 {[%clk 0:01:29]}  Nd5 {[%clk 0:00:34]} 24. Bd2 {[%clk 0:01:19]}  bxa4 {[%clk 0:00:19]} 25. Ka2 {[%clk 0:01:13]}  Rb6 {[%clk 0:00:15]} 26. Rb1 {[%clk 0:01:13]}  Nb4+ {[%clk 0:00:14]} 27. Bxb4 {[%clk 0:01:11]}  cxb4 {[%clk 0:00:15]} 28. Nxe4 {[%clk 0:01:09]}  b3+ {[%clk 0:00:16]} 29. cxb3 {[%clk 0:01:08]}  axb3+ {[%clk 0:00:16]} 30. Ka3 {[%clk 0:01:07]}  Bf8+ {[%clk 0:00:16]} 31. Ka4 {[%clk 0:01:08]}  Rb4+ {[%clk 0:00:16]} 32. Ka5 {[%clk 0:01:08]}  Rxe4 {[%clk 0:00:17]} 33. Kb5 {[%clk 0:01:06]}  Re2 {[%clk 0:00:15]} 0-1


[Site "https://www.chess.com"]